[Event "*** SCC Grand Prix: Titled Tuesday Blitz"]
[Site "Chess.com"]
[Date "2020.07.07"]
[Round "3"]
[White "Manukyan_Artak"]
[Black "mbojan"]
[Result "0-1"]
[WhiteElo "2348"]
[BlackElo "2541"]
[TimeControl "180+1"]
[EndTime "10:30:58 PDT"]
[Termination "mbojan won on time"]

1. e4 {[%clk 0:03:00.9]} 1... c5 {[%clk 0:03:00.1]} 2. Nf3 {[%clk 0:02:59.3]}
2... Nc6 {[%clk 0:03:00.1]} 3. c3 {[%clk 0:02:59.6]} 3... g6 {[%clk 0:02:53.2]}
4. d4 {[%clk 0:02:59]} 4... d6 {[%clk 0:02:52.4]} 5. d5 {[%clk 0:02:56.9]} 5...
Nb8 {[%clk 0:02:52]} 6. a4 {[%clk 0:02:50.7]} 6... Bg7 {[%clk 0:02:51.7]} 7. Bd3
{[%clk 0:02:44.5]} 7... Nf6 {[%clk 0:02:51.5]} 8. h3 {[%clk 0:02:43.2]} 8... O-O
{[%clk 0:02:51.8]} 9. O-O {[%clk 0:02:42.7]} 9... Na6 {[%clk 0:02:48.3]} 10. Na3
{[%clk 0:02:36.6]} 10... Nc7 {[%clk 0:02:47.9]} 11. Nc4 {[%clk 0:02:35.9]} 11...
b6 {[%clk 0:02:46.7]} 12. Re1 {[%clk 0:02:33.5]} 12... Rb8 {[%clk 0:02:46.7]}
13. Bf4 {[%clk 0:02:31.7]} 13... a6 {[%clk 0:02:43.6]} 14. Bh2 {[%clk
0:02:29.1]} 14... Bd7 {[%clk 0:02:29.9]} 15. Qc2 {[%clk 0:02:11.3]} 15... b5
{[%clk 0:02:07.2]} 16. axb5 {[%clk 0:02:09.5]} 16... axb5 {[%clk 0:02:07.3]} 17.
Na5 {[%clk 0:02:09.4]} 17... Rb6 {[%clk 0:02:07.2]} 18. b4 {[%clk 0:02:05.4]}
18... Na6 {[%clk 0:01:44.9]} 19. Rab1 {[%clk 0:01:46.6]} 19... Qa8 {[%clk
0:01:37.9]} 20. Qd2 {[%clk 0:01:28.4]} 20... Rc8 {[%clk 0:01:30.9]} 21. g4
{[%clk 0:01:21.3]} 21... Be8 {[%clk 0:01:21.7]} 22. Bf1 {[%clk 0:01:14.4]} 22...
h5 {[%clk 0:01:06.9]} 23. g5 {[%clk 0:01:11.5]} 23... Nd7 {[%clk 0:01:06.7]} 24.
h4 {[%clk 0:01:07.1]} 24... Ne5 {[%clk 0:01:04.9]} 25. Nxe5 {[%clk 0:01:05.5]}
25... Bxe5 {[%clk 0:00:57.7]} 26. f4 {[%clk 0:01:01.4]} 26... Bg7 {[%clk
0:00:57.1]} 27. e5 {[%clk 0:00:59.7]} 27... dxe5 {[%clk 0:00:35.7]} 28. fxe5
{[%clk 0:01:00.6]} 28... Rd8 {[%clk 0:00:35.2]} 29. Bg2 {[%clk 0:00:59.3]} 29...
Qc8 {[%clk 0:00:30.7]} 30. Qf2 {[%clk 0:00:55.1]} 30... Bd7 {[%clk 0:00:20.5]}
31. Nb3 {[%clk 0:00:36.2]} 31... Bf5 {[%clk 0:00:12.2]} 32. bxc5 {[%clk
0:00:34.3]} 32... Nxc5 {[%clk 0:00:11.1]} 33. Nxc5 {[%clk 0:00:33.5]} 33... Bxb1
{[%clk 0:00:11.2]} 34. Rxb1 {[%clk 0:00:33.6]} 34... Kh7 {[%clk 0:00:04.6]} 35.
Qxf7 {[%clk 0:00:28]} 35... Qxc5+ {[%clk 0:00:04.5]} 36. Qf2 {[%clk 0:00:27.3]}
36... Qxf2+ {[%clk 0:00:03.9]} 37. Kxf2 {[%clk 0:00:28.2]} 37... Rf8+ {[%clk
0:00:04.2]} 38. Ke3 {[%clk 0:00:27.8]} 38... Rbb8 {[%clk 0:00:04.3]} 39. Be4
{[%clk 0:00:22.3]} 39... Rbc8 {[%clk 0:00:03.8]} 40. Kd3 {[%clk 0:00:21]} 40...
Rf2 {[%clk 0:00:04]} 41. Bg1 {[%clk 0:00:20.2]} 41... Ra2 {[%clk 0:00:02.3]} 42.
Bd4 {[%clk 0:00:19.9]} 42... Ra5 {[%clk 0:00:01]} 43. Rb3 {[%clk 0:00:16.7]}
43... Rca8 {[%clk 0:00:01.8]} 44. d6 {[%clk 0:00:16]} 44... Ra1 {[%clk
0:00:02.2]} 45. Bxa8 {[%clk 0:00:15.4]} 45... Rxa8 {[%clk 0:00:02.7]} 46. dxe7
{[%clk 0:00:15.6]} 46... Re8 {[%clk 0:00:03.4]} 47. Rxb5 {[%clk 0:00:15.5]}
47... Rxe7 {[%clk 0:00:03.5]} 48. Ke4 {[%clk 0:00:15.7]} 48... Kg8 {[%clk
0:00:03.9]} 49. Rb8+ {[%clk 0:00:15.1]} 49... Kf7 {[%clk 0:00:04.2]} 50. Ra8
{[%clk 0:00:13.8]} 50... Rd7 {[%clk 0:00:04]} 51. Ra7 {[%clk 0:00:14.1]} 51...
Rxa7 {[%clk 0:00:03.7]} 52. Bxa7 {[%clk 0:00:15]} 52... Ke6 {[%clk 0:00:04.6]}
53. Bd4 {[%clk 0:00:15.6]} 53... Bf8 {[%clk 0:00:05.2]} 54. c4 {[%clk
0:00:14.4]} 54... Bb4 {[%clk 0:00:04.9]} 55. c5 {[%clk 0:00:14.3]} 55... Be1
{[%clk 0:00:05.3]} 56. c6 {[%clk 0:00:11.5]} 56... Bxh4 {[%clk 0:00:05.3]} 57.
c7 {[%clk 0:00:09.9]} 57... Kd7 {[%clk 0:00:06.2]} 58. Kd5 {[%clk 0:00:09.1]}
58... Kxc7 {[%clk 0:00:05.2]} 59. e6 {[%clk 0:00:08.9]} 59... Bxg5 {[%clk
0:00:05.3]} 60. Bc5 {[%clk 0:00:08.4]} 60... Kd8 {[%clk 0:00:05.1]} 61. Ke5
{[%clk 0:00:08.7]} 61... Be7 {[%clk 0:00:05.5]} 62. Bb6+ {[%clk 0:00:08.3]}
62... Ke8 {[%clk 0:00:06.1]} 63. Kf4 {[%clk 0:00:08.7]} 63... Kf8 {[%clk
0:00:06.3]} 64. Bc7 {[%clk 0:00:08.4]} 64... Kg7 {[%clk 0:00:06.5]} 65. Be5+
{[%clk 0:00:08.2]} 65... Kh6 {[%clk 0:00:07.1]} 66. Kg3 {[%clk 0:00:07.4]} 66...
g5 {[%clk 0:00:07.4]} 67. Bc7 {[%clk 0:00:06.2]} 67... Kg6 {[%clk 0:00:07.7]}
68. Be5 {[%clk 0:00:05.6]} 68... Kf5 {[%clk 0:00:08]} 69. Bd4 {[%clk 0:00:05.3]}
69... Kxe6 {[%clk 0:00:08.4]} 70. Kh3 {[%clk 0:00:03.9]} 70... g4+ {[%clk
0:00:08.1]} 71. Kg2 {[%clk 0:00:03.6]} 71... Kf5 {[%clk 0:00:09]} 72. Bf2 {[%clk
0:00:03.6]} 72... h4 {[%clk 0:00:09.9]} 73. Kh1 {[%clk 0:00:02.9]} 73... h3
{[%clk 0:00:10.1]} 74. Be1 {[%clk 0:00:02.2]} 74... Ke4 {[%clk 0:00:09.8]} 0-1

[Event "*** SCC Grand Prix: Titled Tuesday Blitz"]
[Site "Chess.com"]
[Date "2020.07.07"]
[Round "3"]
[White "Haykoooo0o"]
[Black "Alopekos"]
[Result "1-0"]
[WhiteElo "2538"]
[BlackElo "2346"]
[TimeControl "180+1"]
[EndTime "10:31:08 PDT"]
[Termination "Haykoooo0o won by resignation"]

1. e4 {[%clk 0:03:00.9]} 1... c5 {[%clk 0:02:59.9]} 2. Nc3 {[%clk 0:02:59.6]}
2... a6 {[%clk 0:02:59.3]} 3. f4 {[%clk 0:02:58]} 3... b5 {[%clk 0:02:59.4]} 4.
g3 {[%clk 0:02:58]} 4... Bb7 {[%clk 0:02:59.5]} 5. Bg2 {[%clk 0:02:58.4]} 5...
Nf6 {[%clk 0:02:59.7]} 6. d3 {[%clk 0:02:53.3]} 6... e6 {[%clk 0:02:57.2]} 7.
Nh3 {[%clk 0:02:52.4]} 7... d5 {[%clk 0:02:56]} 8. e5 {[%clk 0:02:51.6]} 8...
Ng8 {[%clk 0:02:54.7]} 9. O-O {[%clk 0:02:51.9]} 9... Nc6 {[%clk 0:02:50.8]} 10.
Bd2 {[%clk 0:02:47.2]} 10... Nh6 {[%clk 0:02:41]} 11. Ne2 {[%clk 0:02:22.5]}
11... Ng4 {[%clk 0:02:29.7]} 12. c3 {[%clk 0:02:12.2]} 12... Qb6 {[%clk
0:01:59.8]} 13. c4 {[%clk 0:01:45.2]} 13... dxc4 {[%clk 0:01:42.2]} 14. dxc4
{[%clk 0:01:46.1]} 14... O-O-O {[%clk 0:01:34.1]} 15. Nc3 {[%clk 0:01:33.8]}
15... Ne3 {[%clk 0:01:20.5]} 16. Bxe3 {[%clk 0:01:27.6]} 16... Rxd1 {[%clk
0:01:21.4]} 17. Rfxd1 {[%clk 0:01:27.3]} 17... Nd4 {[%clk 0:01:14.6]} 18. Ne4
{[%clk 0:01:18.9]} 18... Nc2 {[%clk 0:00:53.6]} 19. Nd6+ {[%clk 0:00:50.9]}
19... Bxd6 {[%clk 0:00:52.3]} 20. Rxd6 {[%clk 0:00:44.6]} 20... Qc7 {[%clk
0:00:18.7]} 21. Bxb7+ {[%clk 0:00:32.1]} 21... Kxb7 {[%clk 0:00:18.2]} 22. Rad1
{[%clk 0:00:25.2]} 22... Nxe3 {[%clk 0:00:18]} 23. R1d3 {[%clk 0:00:16.6]} 23...
Nxc4 {[%clk 0:00:09.2]} 24. Rd7 {[%clk 0:00:08.9]} 24... h6 {[%clk 0:00:08.5]}
25. b3 {[%clk 0:00:08.7]} 25... Nb6 {[%clk 0:00:08.2]} 26. Rxc7+ {[%clk
0:00:09.3]} 26... Kxc7 {[%clk 0:00:08.5]} 27. Nf2 {[%clk 0:00:10]} 27... Rd8
{[%clk 0:00:04]} 28. Rc3 {[%clk 0:00:09.2]} 28... Kc6 {[%clk 0:00:03.5]} 29. Ne4
{[%clk 0:00:09.5]} 29... Rd5 {[%clk 0:00:03.9]} 30. Kf2 {[%clk 0:00:07]} 30...
c4 {[%clk 0:00:04]} 31. b4 {[%clk 0:00:06.9]} 31... Na4 {[%clk 0:00:03.9]} 32.
Rc2 {[%clk 0:00:06.7]} 32... Rd4 {[%clk 0:00:04.4]} 33. Nd6 {[%clk 0:00:07.1]}
33... f6 {[%clk 0:00:03.3]} 34. Ne8 {[%clk 0:00:07.6]} 34... fxe5 {[%clk
0:00:03.3]} 35. fxe5 {[%clk 0:00:08.5]} 35... g5 {[%clk 0:00:03.6]} 36. Ng7
{[%clk 0:00:08.1]} 36... Re4 {[%clk 0:00:03.5]} 37. Nxe6 {[%clk 0:00:07.8]}
37... Rxe5 {[%clk 0:00:04]} 38. Nd4+ {[%clk 0:00:08.3]} 38... Kd5 {[%clk
0:00:04.2]} 39. Nf3 {[%clk 0:00:09.2]} 39... Rf5 {[%clk 0:00:04.6]} 40. Ke3
{[%clk 0:00:08.7]} 40... Rf8 {[%clk 0:00:04.6]} 41. Rd2+ {[%clk 0:00:08.1]}
41... Kc6 {[%clk 0:00:04.4]} 42. Ne5+ {[%clk 0:00:08.3]} 42... Kc7 {[%clk
0:00:04.3]} 43. g4 {[%clk 0:00:08.1]} 43... Re8 {[%clk 0:00:04.3]} 44. Ke4
{[%clk 0:00:07.7]} 44... Nc3+ {[%clk 0:00:04.4]} 45. Kf5 {[%clk 0:00:06.7]}
45... Na4 {[%clk 0:00:03.8]} 46. Rd7+ {[%clk 0:00:06.5]} 46... Kb6 {[%clk
0:00:03.9]} 47. Rd6+ {[%clk 0:00:06.7]} 47... Kc7 {[%clk 0:00:03.9]} 48. Rc6+
{[%clk 0:00:06.9]} 48... Kb7 {[%clk 0:00:04.4]} 49. Rxh6 {[%clk 0:00:06.5]}
49... c3 {[%clk 0:00:04.7]} 50. Rh7+ {[%clk 0:00:06]} 50... Kb6 {[%clk
0:00:04.6]} 51. Rh6+ {[%clk 0:00:06.5]} 51... Kb7 {[%clk 0:00:04.6]} 52. Rh7+
{[%clk 0:00:07]} 52... Kb8 {[%clk 0:00:05.1]} 53. Nc6+ {[%clk 0:00:05.8]} 53...
Kc8 {[%clk 0:00:05.5]} 54. Na7+ {[%clk 0:00:06.1]} 54... Kb8 {[%clk 0:00:06]}
55. Nc6+ {[%clk 0:00:05.8]} 55... Kc8 {[%clk 0:00:06.5]} 56. Nd4 {[%clk
0:00:05.8]} 56... Rd8 {[%clk 0:00:03.5]} 57. Nb3 {[%clk 0:00:05.9]} 57... Rd1
{[%clk 0:00:02.7]} 58. Kxg5 {[%clk 0:00:05.8]} 58... Rb1 {[%clk 0:00:02.9]} 59.
Rh6 {[%clk 0:00:05.2]} 59... c2 {[%clk 0:00:02.9]} 60. Rc6+ {[%clk 0:00:05.3]}
60... Kd7 {[%clk 0:00:03.5]} 61. Na5 {[%clk 0:00:04.5]} 61... c1=Q+ {[%clk
0:00:03.1]} 62. Rxc1 {[%clk 0:00:05.4]} 62... Rxc1 {[%clk 0:00:03.8]} 63. h4
{[%clk 0:00:06.3]} 63... Nb6 {[%clk 0:00:02.4]} 64. h5 {[%clk 0:00:06.4]} 64...
Ke6 {[%clk 0:00:03]} 65. Kh6 {[%clk 0:00:06.8]} 65... Nd7 {[%clk 0:00:03.3]} 66.
g5 {[%clk 0:00:07.7]} 66... Ne5 {[%clk 0:00:03.6]} 67. Nb3 {[%clk 0:00:07.9]}
67... Rc7 {[%clk 0:00:02.6]} 68. Nd4+ {[%clk 0:00:07.1]} 68... Kf7 {[%clk
0:00:02.5]} 69. g6+ {[%clk 0:00:06.5]} 69... Kg8 {[%clk 0:00:02.7]} 70. Nf5
{[%clk 0:00:06.7]} 70... Nd7 {[%clk 0:00:01.2]} 71. Ne7+ {[%clk 0:00:05.9]}
71... Kf8 {[%clk 0:00:01.7]} 72. g7+ {[%clk 0:00:06.4]} 72... Kxe7 {[%clk
0:00:02.2]} 73. g8=Q {[%clk 0:00:07.2]} 73... Rc6+ {[%clk 0:00:02.5]} 74. Kg5
{[%clk 0:00:07.2]} 74... Rf6 {[%clk 0:00:02.3]} 75. Qh7+ {[%clk 0:00:07.2]}
75... Rf7 {[%clk 0:00:02.9]} 76. Qe4+ {[%clk 0:00:07.8]} 76... Kf8 {[%clk
0:00:02.4]} 77. h6 {[%clk 0:00:08.3]} 77... Nf6 {[%clk 0:00:02.7]} 78. Qe6
{[%clk 0:00:07.9]} 78... Nh7+ {[%clk 0:00:01.8]} 79. Kg6 {[%clk 0:00:08.3]}
79... Rf6+ {[%clk 0:00:02]} 80. Qxf6+ {[%clk 0:00:08.4]} 80... Nxf6 {[%clk
0:00:02.9]} 81. Kxf6 {[%clk 0:00:09.3]} 81... Kg8 {[%clk 0:00:03.7]} 82. Ke6
{[%clk 0:00:09.5]} 82... Kh7 {[%clk 0:00:04.6]} 83. Kd6 {[%clk 0:00:10.4]} 83...
Kxh6 {[%clk 0:00:05.5]} 84. Kc6 {[%clk 0:00:11]} 84... Kg6 {[%clk 0:00:06.4]}
85. Kb6 {[%clk 0:00:11.6]} 85... Kf6 {[%clk 0:00:07.3]} 1-0

[Event "*** SCC Grand Prix: Titled Tuesday Blitz"]
[Site "Chess.com"]
[Date "2020.07.07"]
[Round "3"]
[White "Al_Shima"]
[Black "Kavyev_Ruslan"]
[Result "0-1"]
[WhiteElo "2345"]
[BlackElo "2534"]
[TimeControl "180+1"]
[EndTime "10:31:10 PDT"]
[Termination "Kavyev_Ruslan won on time"]

1. b3 {[%clk 0:03:00.9]} 1... Nf6 {[%clk 0:02:58.7]} 2. Bb2 {[%clk 0:03:01.4]}
2... g6 {[%clk 0:02:58.3]} 3. Bxf6 {[%clk 0:03:01.9]} 3... exf6 {[%clk
0:02:59.2]} 4. c4 {[%clk 0:03:02.2]} 4... d5 {[%clk 0:02:58.8]} 5. cxd5 {[%clk
0:03:03.1]} 5... Qxd5 {[%clk 0:02:59.7]} 6. Nc3 {[%clk 0:03:03.6]} 6... Qa5
{[%clk 0:03:00.2]} 7. a3 {[%clk 0:03:03.3]} 7... c6 {[%clk 0:03:00.7]} 8. e3
{[%clk 0:02:59.5]} 8... f5 {[%clk 0:03:00.8]} 9. Nf3 {[%clk 0:02:58.8]} 9... Bd6
{[%clk 0:02:59.9]} 10. Be2 {[%clk 0:02:58.1]} 10... O-O {[%clk 0:02:59.1]} 11.
O-O {[%clk 0:02:58.1]} 11... Nd7 {[%clk 0:02:47.2]} 12. Qc2 {[%clk 0:02:57.3]}
12... Nf6 {[%clk 0:02:46.4]} 13. Rfb1 {[%clk 0:02:56.5]} 13... a6 {[%clk
0:02:44.6]} 14. b4 {[%clk 0:02:47.3]} 14... Qc7 {[%clk 0:02:44.5]} 15. a4 {[%clk
0:02:45.7]} 15... Bd7 {[%clk 0:02:25.2]} 16. Qb2 {[%clk 0:02:42.3]} 16... Ne4
{[%clk 0:02:18]} 17. d3 {[%clk 0:02:34.8]} 17... Nxc3 {[%clk 0:02:12.9]} 18.
Qxc3 {[%clk 0:02:35.7]} 18... Rfd8 {[%clk 0:02:01.1]} 19. g3 {[%clk 0:02:34.6]}
19... Bf8 {[%clk 0:01:58.7]} 20. d4 {[%clk 0:02:34]} 20... h5 {[%clk 0:01:47.2]}
21. h4 {[%clk 0:02:33]} 21... Rdc8 {[%clk 0:01:41.1]} 22. Kg2 {[%clk 0:02:30.2]}
22... Bg7 {[%clk 0:01:34.5]} 23. Rc1 {[%clk 0:02:27.7]} 23... Qd6 {[%clk
0:01:32.7]} 24. Qe1 {[%clk 0:02:23.4]} 24... Bf8 {[%clk 0:01:29.7]} 25. Rab1
{[%clk 0:02:19.8]} 25... Be6 {[%clk 0:01:25.5]} 26. Bc4 {[%clk 0:02:12.1]} 26...
Bd7 {[%clk 0:01:23.4]} 27. Qe2 {[%clk 0:02:06.3]} 27... Be6 {[%clk 0:00:52.6]}
28. a5 {[%clk 0:02:02.3]} 28... Bd5 {[%clk 0:00:50.8]} 29. Bxd5 {[%clk
0:02:00.9]} 29... Qxd5 {[%clk 0:00:51.2]} 30. Kg1 {[%clk 0:01:56]} 30... Re8
{[%clk 0:00:51.3]} 31. Qd1 {[%clk 0:01:41.7]} 31... Rad8 {[%clk 0:00:51.1]} 32.
Ne5 {[%clk 0:01:32.2]} 32... Qe6 {[%clk 0:00:46.1]} 33. Qb3 {[%clk 0:01:23.8]}
33... Rd5 {[%clk 0:00:41.3]} 34. Nd3 {[%clk 0:01:20]} 34... Qf6 {[%clk
0:00:38.5]} 35. Nc5 {[%clk 0:01:15.1]} 35... Re7 {[%clk 0:00:38.4]} 36. Rc2
{[%clk 0:00:46.6]} 36... f4 {[%clk 0:00:35]} 37. gxf4 {[%clk 0:00:43.2]} 37...
Qxh4 {[%clk 0:00:34.7]} 38. Qd3 {[%clk 0:00:39.7]} 38... Bg7 {[%clk 0:00:30.9]}
39. Qf1 {[%clk 0:00:36.9]} 39... g5 {[%clk 0:00:29.8]} 40. Nd3 {[%clk
0:00:20.5]} 40... gxf4 {[%clk 0:00:28.4]} 41. Nxf4 {[%clk 0:00:21.4]} 41... Rg5+
{[%clk 0:00:28.6]} 42. Ng2 {[%clk 0:00:21.5]} 42... Qg4 {[%clk 0:00:25.4]} 43.
f3 {[%clk 0:00:20.5]} 43... Qe6 {[%clk 0:00:22.6]} 44. Re1 {[%clk 0:00:16.4]}
44... h4 {[%clk 0:00:22.8]} 45. Kf2 {[%clk 0:00:15.5]} 45... Qg6 {[%clk
0:00:19]} 46. Nf4 {[%clk 0:00:15.1]} 46... Qxc2+ {[%clk 0:00:19]} 47. Re2 {[%clk
0:00:15.5]} 47... Qc4 {[%clk 0:00:18.8]} 48. Qh3 {[%clk 0:00:15.3]} 48... Bxd4
{[%clk 0:00:14]} 49. Qxh4 {[%clk 0:00:12.3]} 49... Rg7 {[%clk 0:00:07.9]} 50.
Qxe7 {[%clk 0:00:10.9]} 50... Bc3 {[%clk 0:00:05.4]} 51. Qd8+ {[%clk 0:00:09.5]}
51... Kh7 {[%clk 0:00:05.8]} 52. Qd3+ {[%clk 0:00:08.6]} 52... Qxd3 {[%clk
0:00:05.8]} 53. Nxd3 {[%clk 0:00:09.5]} 53... Rg5 {[%clk 0:00:05.7]} 54. Rc2
{[%clk 0:00:09.5]} 54... Bf6 {[%clk 0:00:04.5]} 55. f4 {[%clk 0:00:09.3]} 55...
Rb5 {[%clk 0:00:04.4]} 56. Rc4 {[%clk 0:00:08.4]} 56... Be7 {[%clk 0:00:04.8]}
57. Kf3 {[%clk 0:00:08.4]} 57... Kg6 {[%clk 0:00:04.9]} 58. Ne5+ {[%clk
0:00:07.7]} 58... Kf5 {[%clk 0:00:04.8]} 59. Nd3 {[%clk 0:00:08.6]} 59... Ke6
{[%clk 0:00:05]} 60. e4 {[%clk 0:00:09.1]} 60... f5 {[%clk 0:00:05.3]} 61. e5
{[%clk 0:00:08.3]} 61... Kd5 {[%clk 0:00:05.3]} 62. Rc2 {[%clk 0:00:06.9]} 62...
Bxb4 {[%clk 0:00:05.9]} 63. Rb2 {[%clk 0:00:03.9]} 63... Bxa5 {[%clk 0:00:06]}
64. Rc2 {[%clk 0:00:04.3]} 64... Bb6 {[%clk 0:00:05.5]} 65. Ke2 {[%clk
0:00:04.5]} 65... a5 {[%clk 0:00:05.8]} 66. Ra2 {[%clk 0:00:04.9]} 66... Bd8
{[%clk 0:00:04.9]} 67. Ne1 {[%clk 0:00:04.5]} 67... Be7 {[%clk 0:00:05.3]} 68.
Nc2 {[%clk 0:00:04.7]} 68... Ke4 {[%clk 0:00:05]} 69. Ra4+ {[%clk 0:00:03.9]}
69... Bb4 {[%clk 0:00:05.7]} 70. Na3 {[%clk 0:00:03.5]} 70... Kxf4 {[%clk
0:00:05.6]} 71. Nxb5 {[%clk 0:00:03.4]} 71... cxb5 {[%clk 0:00:05.6]} 72. Rxb4+
{[%clk 0:00:03.8]} 72... axb4 {[%clk 0:00:05.8]} 73. e6 {[%clk 0:00:04.7]} 73...
b3 {[%clk 0:00:06.5]} 74. e7 {[%clk 0:00:05.4]} 74... b2 {[%clk 0:00:07.1]} 75.
e8=Q {[%clk 0:00:05.6]} 75... b1=Q {[%clk 0:00:08]} 76. Qb8+ {[%clk 0:00:05]}
76... Ke4 {[%clk 0:00:08]} 77. Qxb7+ {[%clk 0:00:04.8]} 77... Kd4 {[%clk
0:00:08.6]} 78. Qd7+ {[%clk 0:00:04.3]} 78... Kc3 {[%clk 0:00:09.1]} 79. Qc6+
{[%clk 0:00:03]} 79... Kb4 {[%clk 0:00:08.5]} 80. Qd6+ {[%clk 0:00:02.1]} 80...
Kb3 {[%clk 0:00:07.6]} 81. Qd5+ {[%clk 0:00:01.6]} 81... Ka3 {[%clk 0:00:07.2]}
0-1

[Event "*** SCC Grand Prix: Titled Tuesday Blitz"]
[Site "Chess.com"]
[Date "2020.07.07"]
[Round "3"]
[White "gross-aleks"]
[Black "Vaathi_Coming"]
[Result "1/2-1/2"]
[WhiteElo "2606"]
[BlackElo "2891"]
[TimeControl "180+1"]
[EndTime "10:31:11 PDT"]
[Termination "Game drawn by agreement"]

1. c4 {[%clk 0:03:00.9]} 1... Nf6 {[%clk 0:02:59.3]} 2. Nf3 {[%clk 0:02:58.5]}
2... g6 {[%clk 0:02:58.1]} 3. Nc3 {[%clk 0:02:56.6]} 3... Bg7 {[%clk 0:02:59]}
4. d4 {[%clk 0:02:56.5]} 4... O-O {[%clk 0:02:58.7]} 5. e4 {[%clk 0:02:56.2]}
5... d6 {[%clk 0:02:59.4]} 6. Be2 {[%clk 0:02:56.2]} 6... Na6 {[%clk 0:02:59.8]}
7. Bg5 {[%clk 0:02:47.8]} 7... c5 {[%clk 0:02:56.2]} 8. d5 {[%clk 0:02:44.6]}
8... Nc7 {[%clk 0:02:56]} 9. O-O {[%clk 0:02:42.6]} 9... Nd7 {[%clk 0:02:51.8]}
10. Qd2 {[%clk 0:02:40.3]} 10... b5 {[%clk 0:02:46.6]} 11. cxb5 {[%clk 0:02:37]}
11... a6 {[%clk 0:02:46.4]} 12. a4 {[%clk 0:02:36.6]} 12... axb5 {[%clk
0:02:46.4]} 13. axb5 {[%clk 0:02:37.3]} 13... Bb7 {[%clk 0:02:44.2]} 14. Rxa8
{[%clk 0:02:32.7]} 14... Nxa8 {[%clk 0:02:45.1]} 15. Bh6 {[%clk 0:02:27.5]}
15... Qa5 {[%clk 0:02:41.1]} 16. Bxg7 {[%clk 0:02:26.3]} 16... Kxg7 {[%clk
0:02:42]} 17. h4 {[%clk 0:02:11]} 17... Nab6 {[%clk 0:02:37.4]} 18. h5 {[%clk
0:02:10.7]} 18... Qb4 {[%clk 0:02:36.8]} 19. Re1 {[%clk 0:01:46.5]} 19... f6
{[%clk 0:02:32.5]} 20. Nh4 {[%clk 0:01:35.5]} 20... Ne5 {[%clk 0:02:29.3]} 21.
h6+ {[%clk 0:00:35.8]} 21... Kf7 {[%clk 0:02:25.5]} 22. Nf3 {[%clk 0:00:31.4]}
22... Nxf3+ {[%clk 0:02:12.5]} 23. gxf3 {[%clk 0:00:32.3]} 23... Nc4 {[%clk
0:02:13.1]} 24. Bxc4 {[%clk 0:00:32.1]} 24... Qxc4 {[%clk 0:02:13.8]} 25. f4
{[%clk 0:00:31.9]} 25... Bc8 {[%clk 0:02:01.9]} 26. Qe3 {[%clk 0:00:31.1]} 26...
Kg8 {[%clk 0:01:26.9]} 27. Qg3 {[%clk 0:00:22.9]} 27... Qb3 {[%clk 0:01:17.9]}
28. e5 {[%clk 0:00:22.8]} 28... Qxb2 {[%clk 0:01:10.7]} 29. exd6 {[%clk
0:00:22.4]} 29... exd6 {[%clk 0:01:10.9]} 30. Re7 {[%clk 0:00:21.8]} 30... Bf5
{[%clk 0:01:06.1]} 31. Qe3 {[%clk 0:00:20.1]} 31... g5 {[%clk 0:00:35.3]} 32.
Re8 {[%clk 0:00:19.8]} 32... Bd7 {[%clk 0:00:28.8]} 33. Rxf8+ {[%clk 0:00:18.4]}
33... Kxf8 {[%clk 0:00:28.7]} 34. fxg5 {[%clk 0:00:18.9]} 34... fxg5 {[%clk
0:00:29.2]} 35. Ne4 {[%clk 0:00:18]} 35... Qxb5 {[%clk 0:00:10.1]} 36. Nxd6
{[%clk 0:00:14.6]} 36... Qb1+ {[%clk 0:00:09.5]} 37. Kg2 {[%clk 0:00:14.1]}
37... Qg6 {[%clk 0:00:05.9]} 38. Qe5 {[%clk 0:00:10.6]} 38... Qxh6 {[%clk
0:00:04.4]} 39. Ne4 {[%clk 0:00:10.3]} 39... Qh3+ {[%clk 0:00:04.3]} 40. Kg1
{[%clk 0:00:10.4]} 40... Qg4+ {[%clk 0:00:04.9]} 41. Ng3 {[%clk 0:00:10.4]}
41... Qf4 {[%clk 0:00:04.5]} 42. Qh8+ {[%clk 0:00:09.6]} 42... Ke7 {[%clk
0:00:05]} 43. Qxh7+ {[%clk 0:00:10.5]} 43... Kd6 {[%clk 0:00:05.7]} 44. Qg7
{[%clk 0:00:06.6]} 44... Bh3 {[%clk 0:00:03.8]} 45. Qg8 {[%clk 0:00:04.9]} 45...
Bg4 {[%clk 0:00:03.2]} 46. Qg6+ {[%clk 0:00:04.5]} 46... Kxd5 {[%clk 0:00:03.3]}
47. Qg8+ {[%clk 0:00:04.4]} 47... Be6 {[%clk 0:00:03.9]} 48. Qg7 {[%clk
0:00:04.3]} 48... c4 {[%clk 0:00:03.9]} 49. Ne2 {[%clk 0:00:05.1]} 49... Qg4+
{[%clk 0:00:03.3]} 50. Kf1 {[%clk 0:00:05.3]} 50... Qh3+ {[%clk 0:00:03.9]} 51.
Ke1 {[%clk 0:00:05.9]} 51... Qh1+ {[%clk 0:00:03.7]} 52. Kd2 {[%clk 0:00:06.5]}
52... Qh4 {[%clk 0:00:04.6]} 53. Nc3+ {[%clk 0:00:06.5]} 53... Kc6 {[%clk
0:00:04.6]} 54. Qf8 {[%clk 0:00:07]} 54... Qf4+ {[%clk 0:00:04.7]} 55. Qxf4
{[%clk 0:00:07.2]} 55... gxf4 {[%clk 0:00:05.6]} 56. Ne2 {[%clk 0:00:07.6]}
56... f3 {[%clk 0:00:03]} 57. Nd4+ {[%clk 0:00:07.5]} 57... Kd5 {[%clk
0:00:03.9]} 58. Kc3 {[%clk 0:00:07.7]} 58... Bg4 {[%clk 0:00:03.4]} 59. Nc2
{[%clk 0:00:08.6]} 59... Ke4 {[%clk 0:00:01.9]} 60. Ne3 {[%clk 0:00:09.5]} 60...
Bh3 {[%clk 0:00:02.8]} 61. Kxc4 {[%clk 0:00:09.2]} 61... Be6+ {[%clk 0:00:03.7]}
62. Kc3 {[%clk 0:00:09.9]} 62... Kf4 {[%clk 0:00:03.9]} 63. Kd2 {[%clk
0:00:10.8]} 63... Kg5 {[%clk 0:00:04.1]} 64. Nc2 {[%clk 0:00:11]} 64... Kh4
{[%clk 0:00:05]} 65. Nd4 {[%clk 0:00:11.4]} 65... Bd5 {[%clk 0:00:05]} 66. Ke3
{[%clk 0:00:12.3]} 66... Kg4 {[%clk 0:00:05.3]} 67. Nc2 {[%clk 0:00:10.4]} 67...
Bb7 {[%clk 0:00:05.2]} 68. Ne1 {[%clk 0:00:11.3]} 68... Bc6 {[%clk 0:00:03.6]}
69. Nd3 {[%clk 0:00:11.6]} 69... Kf5 {[%clk 0:00:03.9]} 70. Nb4 {[%clk
0:00:08.3]} 70... Be4 {[%clk 0:00:04]} 71. Kd4 {[%clk 0:00:07.3]} 71... Kf4
{[%clk 0:00:03.8]} 72. Nd5+ {[%clk 0:00:06.9]} 72... Bxd5 {[%clk 0:00:04.2]} 73.
Kxd5 {[%clk 0:00:07.8]} 73... Kg4 {[%clk 0:00:04.4]} 74. Kd4 {[%clk 0:00:08.5]}
74... Kh3 {[%clk 0:00:04]} 75. Ke4 {[%clk 0:00:08.7]} 75... Kg4 {[%clk
0:00:03.6]} 76. Ke3 {[%clk 0:00:09.1]} 76... Kg5 {[%clk 0:00:03.9]} 77. Kxf3
{[%clk 0:00:10]} 77... Kf5 {[%clk 0:00:04.8]} 1/2-1/2